Cogmind - Beta 14 @@@ ROGUE MODE // 2025.03.21 @ 19:37:05 Player: Anting Result: Core destroyed Performance ------------- Evolutions (2) 1000 Regions Visited (6) 1200 Robots Destroyed (73) 365 Value Destroyed (3164) 3164 Prototype IDs (37) 740 Alien Tech Used (0) 0 Bonus (1056) 1056 TOTAL SCORE: 7525 Bonus ------- High Alert Combat Kills 415 Follower Combat Kills 169 Entered Garrisons 200 Aligned with FarCom 300 Friendly Fire -28 Cogmind --------- Core Integrity 0/550 Matter 62/300 Energy 315/315 System Corruption 4% Temperature Critical (514) Movement Treading (400) Ox3 Location -8/Garrison Parts ------- > --- POWER (1) -------- Neutrino Core > --- PROPULSION (4) --- Light Treads Light Treads > --- UTILITY (4) ------ High-capacity Storage Unit Reactive Plating > --- WEAPON (2) ------- Gauss Cannon Gauss Cannon > --- INVENTORY (20) --- Micro Nuclear Core Light Treads Nuclear Pulse Array Experimental Sensor Array Improved Signal Interpreter Improved Melee Analysis Suite Improved Melee Analysis Suite Improved Melee Analysis Suite Reaction Control System Improved Utility Shielding Gauss Rifle Improved Grenade Launcher Improved Grenade Launcher Improved Remote Datajack Longsword +1 Makeshift Spear Peak State ------------ > --- POWER ------------ Neutrino Core > --- PROPULSION ------- Light Treads Light Treads Light Treads Light Treads > --- UTILITY ---------- Improved Heat Sink High-capacity Storage Unit Light Armor Plating Reactive Plating > --- WEAPON ----------- Longsword +1 Makeshift Spear > --- INVENTORY -------- Micro Nuclear Core Light Treads Nuclear Pulse Array Experimental Sensor Array Improved Signal Interpreter Improved Melee Analysis Suite Improved Melee Analysis Suite Improved Melee Analysis Suite Reaction Control System Improved Utility Shielding Reactive Plating Gauss Rifle Gauss Cannon Gauss Cannon Improved Grenade Launcher Improved Grenade Launcher Improved Remote Datajack [Rating: 37] Favorites ----------- Power Improved Ion Engine Engine Improved Ion Engine Power Core Light Nuclear Core Propulsion Light Treads Treads Light Treads Leg Aluminum Leg Utility Light Armor Plating Device Improved Heat Sink Storage High-capacity Storage Unit Protection Light Armor Plating Weapon Light Assault Rifle Energy Gun Small Laser Ballistic Gun Light Assault Rifle Ballistic Cannon Gauss Cannon Launcher Mini Grenade Launcher Slashing Weapon Longsword +1 Piercing Weapon Makeshift Spear Special Melee Weapon Datajack Build | -11 -10 -10 -10 -9 -8 -8 ------- Run | Yrd Mat Min Exi Min Mat Gar Slots Evolved 4 | . . . . . 4 . Power . | . . . . . . . Propulsion 2 | . . . . . 2 . Utility 2 | . . . . . 2 . Weapon . | . . . . . . . Parts Attached 83 | 8 3 9 7 2 21 33 Power 9 | 1 1 1 . . 3 3 Engine 5 | 1 . 1 . . 2 1 Core 4 | . 1 . . . 1 2 Reactor . | . . . . . . . Propulsion 24 | 3 1 2 2 . 8 8 Treads 12 | 1 . . 2 . 4 5 Leg 12 | 2 1 2 . . 4 3 Wheel . | . . . . . . . Hover . | . . . . . . . Flight . | . . . . . . . Utility 22 | 2 1 3 2 . 4 10 Device 4 | 1 . . . . 1 2 Storage 6 | 1 1 1 2 . 1 . Processor . | . . . . . . . Hackware . | . . . . . . . Protection 12 | . . 2 . . 2 8 Artifact . | . . . . . . . Weapon 28 | 2 . 3 3 2 6 12 Energy Gun 1 | 1 . . . . . . Energy Cannon . | . . . . . . . Ballistic Gun 15 | 1 . 3 2 2 2 5 Ballistic Cannon 6 | . . . . . 3 3 Launcher 3 | . . . . . 1 2 Special Weapon . | . . . . . . . Impact Weapon . | . . . . . . . Slashing Weapon 1 | . . . . . . 1 Piercing Weapon 1 | . . . . . . 1 Special Melee Weapon 1 | . . . 1 . . . Unidentified Prototypes . | . . . . . . . Parts Lost 30 | . . 2 . 1 17 10 Power 4 | . . . . . 3 1 Propulsion 14 | . . 1 . . 8 5 Utility 9 | . . 1 . . 4 4 Weapon 3 | . . . . 1 2 . Highest Loss Streak 10 | . . 2 . 1 10 5 To Critical Strikes . | . . . . . . . Average Slot Usage (%) 90 | . 100 97 85 100 82 88 Engine 9 | . 8 8 14 14 7 6 Core 1 | . 5 5 . . . 1 Treads 13 | . . . . 28 25 21 Leg 12 | . 28 25 14 . 6 7 Device 3 | . 14 5 . . 5 5 Storage 11 | . 14 14 14 14 9 9 Protection 13 | . . 8 14 14 10 19 Energy Gun 1 | . 14 5 . . . . Ballistic Gun 17 | . 14 22 15 28 10 13 Ballistic Cannon 2 | . . . . . 7 3 Special Melee Weapon 2 | . . . 12 . . . Peak Build Rating 37 | 7 10 14 13 14 27 37 Average Rating 17 | 4 8 12 12 12 21 27 On Entrance 10 | . 7 10 12 12 12 20 Naked Turns . | . . . . . . . Heaviest Build 91 | 13 18 32 52 34 64 91 Greatest Support 82 | 20 20 22 40 40 82 80 Greatest Overweight (x) 21 | 1 . 2 4 . 3 21 Average Overweight (x) . | . . . 3 . . . Largest Inventory Capacity 20 | 8 10 15 20 15 20 20 Average Capacity 17 | 7 8 14 18 15 18 20 Most Carried 20 | 4 9 15 17 14 20 20 Average Carried 16 | 3 6 14 16 13 16 19 Final Capacity 20 | 8 10 15 15 15 20 20 Final Carried 20 | 4 9 15 13 14 20 17 Class Distribution -------------------- 61% | Mutant 38% | Scavenger-Mutant Dominant Class ---------------- Mutant | -10/Materials Scavenger-Mutant | -10/Mines Mutant | -10/Exiles Mutant | -9/Mines Scavenger-Mutant | -8/Materials Scavenger-Mutant | -8/Garrison Resources | -11 -10 -10 -10 -9 -8 -8 ----------- Run | Yrd Mat Min Exi Min Mat Gar Matter Collected 2393 | 158 130 212 . 93 748 1052 Remotely . | . . . . . . . Salvage Created 2072 | 47 180 187 . 59 962 637 Parts 149 | 9 12 16 . 6 54 52 Haulers Intercepted 1 | . . . . . 1 . Recyclers Shooed 1 | . . 1 . . . . Parts Field Recycled . | . . . . . . . Retrieved Matter . | . . . . . . . Parts Self-Destructed . | . . . . . . . Prevented . | . . . . . . . Kills | -11 -10 -10 -10 -9 -8 -8 ------- Run | Yrd Mat Min Exi Min Mat Gar Combat Hostiles Destroyed 65 | . 4 10 . 4 27 20 Melee 1 | . . . . . 1 . Guns 35 | . 4 10 . 4 4 13 Cannons 23 | . . . . . 20 3 AOE 6 | . . . . . 2 4 Classes Destroyed 12 | 1 2 1 . . 4 4 Builder 3 | . . . . . 3 . Tunneler 3 | 3 . . . . . . Hauler 1 | . . . . . 1 . Operator 1 | . 1 . . . . . Swarmer 21 | . . 8 . 4 5 4 Grunt 30 | . 4 2 . . 17 7 Brawler 2 | . . . . . 2 . Duelist 1 | . . . . . . 1 Sentry 6 | . . . . . 3 3 Hunter 1 | . . . . . . 1 Programmer 3 | . . . . . . 3 Behemoth 1 | . . . . . . 1 Best Kill Streak 13 | 2 2 4 . 4 13 4 Combat Bots Only 12 | . 2 4 . 4 12 4 Max Kills in Single Turn 3 | 1 1 1 . 1 2 3 Gunslinging . | . . . . . . . Exploded 3 | . . . . . 1 3 Melee 1 | . . . . . 1 . Uniques/NPCs Destroyed . | . . . . . . . Combat | -11 -10 -10 -10 -9 -8 -8 -------- Run | Yrd Mat Min Exi Min Mat Gar Hostile Shots Fired 484 | . 15 84 . 28 197 160 Missed 125 | . 2 22 . 11 49 41 Damage Taken 5359 | . 169 659 . 140 2076 2315 Core 777 | . 42 117 . 26 224 368 Absorbed by Shields . | . . . . . . . Ignored by Resistances 109 | . . . . . . 109 Core Remaining (%) 63 | 100 . . . 26 . . Volleys Fired 286 | 9 14 41 . 10 91 121 Largest 2 | 2 2 2 . 2 2 2 Hottest 96 | 60 60 60 . 45 96 96 Shots Fired 507 | 18 28 75 . 20 177 189 Gun 366 | 18 28 75 . 20 81 144 Cannon 131 | . . . . . 91 40 Launcher 10 | . . . . . 5 5 Special . | . . . . . . . Kinetic 455 | 9 14 56 . 20 172 184 Thermal 42 | 9 14 19 . . . . Explosive 5 | . . . . . . 5 Electromagnetic 5 | . . . . . 5 . Robot Hit Streak 16 | 4 7 6 . 8 16 12 Robot Miss Streak 6 | 2 3 6 . 5 4 4 Penetration Max 1 | . . . . . 1 . Secondary Targets 4 | . . 2 . 1 . 1 Max Gunslinging Chain 1 | . . 1 . 1 . 1 Shots Hit Robots 283 | 9 20 39 4 11 111 89 Core Hits 130 | 5 13 16 . 7 52 37 Critical Kills . | . . . . . . . Critical Parts Destroyed 2 | . . . . . 1 1 Critical Strikes 17 | . . . . . 11 6 Destroy 2 | . . . . . 1 1 Blast 15 | . . . . . 10 5 Melee Attacks 5 | . . . 4 . . 1 Impact . | . . . . . . . Slashing 1 | . . . . . . 1 Piercing . | . . . . . . . Sneak Attacks 4 | . . . 4 . . . Combat Hostiles . | . . . . . . . Follow-up Attacks . | . . . . . . . Damage Inflicted 6067 | 83 184 341 . 135 2901 2423 Guns 2653 | 83 184 332 . 130 689 1235 Cannons 2528 | . . . . . 1830 698 Explosions 823 | . . . . . 333 490 Melee . | . . . . . . . Ramming 63 | . . 9 . 5 49 . Kinetic 4950 | 30 96 242 . 130 2519 1933 Thermal 282 | 53 88 90 . . 51 . Explosive 490 | . . . . . . 490 Electromagnetic 282 | . . . . . 282 . Impact . | . . . . . . . Slashing . | . . . . . . . Piercing . | . . . . . . . Highest Corruption 4 | . . . . . . 4 Average Corruption 3 | . . . . . . 3 Corruption Purged . | . . . . . . . Corruption Blocked . | . . . . . . . Effects 7 | . . . . . . 7 Message Errors 1 | . . . . . . 1 Parts Rejected 1 | . . . . . . 1 Data Loss (minor) 3 | . . . . . . 3 Misfires 1 | . . . . . . 1 Alerts 1 | . . . . . . 1 Overload Shots . | . . . . . . . Overflow Damage 58 | . . . . . 18 40 Projectiles 18 | . . . . . 18 . Explosions 40 | . . . . . . 40 Melee . | . . . . . . . Knockbacks 22 | . . . . . 20 2 Impact 1 | . . . . . 1 . Kinetic 20 | . . . . . 18 2 Secondary 1 | . . . . . 1 . Self-Inflicted Damage 67 | . . . . . . 67 Shots 2 | . . . . . . 2 Rammed 6 | . . . . 1 5 . Targets Rammed 8 | . . 1 . 1 6 . Kicked 1 | . . 1 . . . . Crushed 1 | . . . . . 1 . Highest Temperature 566 | 40 130 102 . 32 129 566 Average Temperature 85 | 23 53 27 . 14 35 176 Received Heat Transfer 1950 | . 114 120 . . 1116 600 Effects 6 | . . . . . . 6 Shutdowns 2 | . . . . . . 2 Interference 1 | . . . . . . 1 Short Circuit 1 | . . . . . . 1 Damage (minor) 1 | . . . . . . 1 Damage (core) 1 | . . . . . . 1 Siege Activations . | . . . . . . . Robots Corrupted . | . . . . . . . Combat Hostiles . | . . . . . . . Parts Fried 1 | . . . . . 1 . Impact Corruptions . | . . . . . . . Robots Melted . | . . . . . . . Combat Hostiles . | . . . . . . . Parts Melted . | . . . . . . . Heat Transferred 625 | 125 200 200 . . 100 . Parts Sabotaged . | . . . . . . . Parts Stolen . | . . . . . . . Parts Stripped . | . . . . . . . Power Chain Reactions 1 | . . . . . 1 . Alert | -11 -10 -10 -10 -9 -8 -8 ------- Run | Yrd Mat Min Exi Min Mat Gar Peak Influence 1416 | 15 143 135 . 80 542 1416 Initial 299 | . 9 55 . . 2 299 Average 341 | 4 90 62 . 30 168 758 Maximum Alert Level 4 | . . . . . 2 4 Low Security (%) 56 | 100 100 100 . 100 67 . Level 1 13 | . . . . . 14 28 Level 2 12 | . . . . . 18 24 Level 3 9 | . . . . . . 24 Level 4 8 | . . . . . . 22 Level 5 . | . . . . . . . High Security . | . . . . . . . Max Security . | . . . . . . . Squads Dispatched 7 | . 1 1 . . 5 . Investigation 3 | . . 1 . . 2 . Extermination . | . . . . . . . Reinforcement 1 | . 1 . . . . . Assault . | . . . . . . . Garrison 3 | . . . . . 3 . Intercept . | . . . . . . . Searches Triggered . | . . . . . . . Construction Impeded . | . . . . . . . Haulers Reinforced . | . . . . . . . Active Scanning Responses . | . . . . . . . Cargo Convoy Interrupts . | . . . . . . . Stealth | -11 -10 -10 -10 -9 -8 -8 --------- Run | Yrd Mat Min Exi Min Mat Gar Distress Signals 5 | . . . . . 4 1 Communications Jammed . | . . . . . . . Distress Signals . | . . . . . . . Times Spotted 97 | . 6 16 . 4 46 25 Peak Tracking Total 13 | . 3 3 . 4 13 4 Tactical Retreats 7 | . . 3 . . 4 . Traps | -11 -10 -10 -10 -9 -8 -8 ------- Run | Yrd Mat Min Exi Min Mat Gar Traps Triggered 3 | . . . . . 2 1 Indirectly . | . . . . . . . Trap Hack Attempts . | . . . . . . . Triggered . | . . . . . . . Disarmed . | . . . . . . . Reprogrammed . | . . . . . . . Reused . | . . . . . . . Traps Extracted . | . . . . . . . Installed . | . . . . . . . Triggered . | . . . . . . . Machines | -11 -10 -10 -10 -9 -8 -8 ---------- Run | Yrd Mat Min Exi Min Mat Gar Machines Disabled 9 | . . . . . 3 6 Max in Single Turn 1 | . . . . . 1 1 Garrison Relay 4 | . . . . . . 4 Machines Repaired . | . . . . . . . Machines Dismantled . | . . . . . . . Machines Sabotaged . | . . . . . . . Overloaded Fab Kills . | . . . . . . . Hacking | -11 -10 -10 -10 -9 -8 -8 --------- Run | Yrd Mat Min Exi Min Mat Gar Machines Accessed 13 | . 2 1 2 2 3 3 Terminals 9 | . 2 . . 2 2 3 Fabricators . | . . . . . . . Repair Stations . | . . . . . . . Recycling Units . | . . . . . . . Scanalyzers . | . . . . . . . Garrison Access 1 | . . . . . 1 . Total Hacks 33 | . 7 1 2 10 6 7 Successful 16 | . 3 1 2 5 3 2 Failed 17 | . 4 . . 5 3 5 Catastrophic 6 | . 2 . . 3 . 1 Database Lockouts . | . . . . . . . Manual 20 | . 7 . 1 7 5 . Terminals 29 | . 7 . . 10 5 7 Fabricators . | . . . . . . . Repair Stations . | . . . . . . . Recycling Units . | . . . . . . . Scanalyzers . | . . . . . . . Garrison Access 1 | . . . . . 1 . Terminal Hacks 15 | . 3 1 2 5 2 2 Record 1 | . . . 1 . . . Part Schematic 2 | . . . . 2 . . Robot Analysis 2 | . 2 . . . . . Open Door 2 | . . 1 . . . 1 Branch Access Points 1 | . 1 . . . . . Emergency Access Points 1 | . . . . . . 1 Alert Level 3 | . . . . 3 . . Unreport Threat 2 | . . . . . 2 . Derelict Proto ID Bank 1 | . . . 1 . . . Fabricator Hacks . | . . . . . . . Repair Station Hacks . | . . . . . . . Recycling Unit Hacks . | . . . . . . . Scanalyzer . | . . . . . . . Garrison Access Hacks 1 | . . . . . 1 . Unlock Access 1 | . . . . . 1 . Unauthorized Hacks . | . . . . . . . Terminals . | . . . . . . . Fabricators . | . . . . . . . Repair Stations . | . . . . . . . Recycling Units . | . . . . . . . Scanalyzers . | . . . . . . . Garrison Access . | . . . . . . . Data Cores Recovered . | . . . . . . . Used . | . . . . . . . Hacking Detections 8 | . 2 . . 2 2 2 Full Trace Events . | . . . . . . . Feedback Events . | . . . . . . . Feedback Blocked . | . . . . . . . Robot Schematics Acquired . | . . . . . . . Robots Built . | . . . . . . . Authchips . | . . . . . . . Time . | . . . . . . . Total Robot Build Rating . | . . . . . . . Part Schematics Acquired 2 | . . . . 2 . . Parts Built . | . . . . . . . Authchips . | . . . . . . . Time . | . . . . . . . Total Part Build Rating . | . . . . . . . Parts Repaired . | . . . . . . . Time . | . . . . . . . Parts Recycled . | . . . . . . . Recycled Matter . | . . . . . . . Retrieved Matter . | . . . . . . . Retrieved Components . | . . . . . . . Parts Scanalyzed . | . . . . . . . Part Schematics Acquired . | . . . . . . . Parts Damaged . | . . . . . . . Bothacking | -11 -10 -10 -10 -9 -8 -8 ------------ Run | Yrd Mat Min Exi Min Mat Gar Used RIF Installer . | . . . . . . . Robots Hacked 4 | . . . 4 . . . Non-combat 3 | . . . 3 . . . Combat 1 | . . . 1 . . . Robot Hacks Applied 4 | . . . 4 . . . parse_system 4 | . . . 4 . . . Relay Couplers Released 16 | . . . . . . 16 Machine Destruction 16 | . . . . . . 16 Fabnet Peak Effective % . | . . . . . . . Robots Rewired . | . . . . . . . Allies Hacked . | . . . . . . . Hacks Repelled . | . . . . . . . Allies | -11 -10 -10 -10 -9 -8 -8 -------- Run | Yrd Mat Min Exi Min Mat Gar Total Allies 3 | . . 1 . . . 2 Largest Group 2 | . . 1 1 . . 2 Highest-Rated Group 62 | . . 31 31 . . 62 Highest-Rated Ally 31 | . . 31 31 . . 31 Total Orders . | . . . . . . . Ally Attacks 26 | . . . . . . 26 Total Damage 524 | . . . . . . 524 Kills 5 | . . . . . . 5 Allies Corrupted . | . . . . . . . Allies Melted . | . . . . . . . Intel | -11 -10 -10 -10 -9 -8 -8 ------- Run | Yrd Mat Min Exi Min Mat Gar Robot Analysis Total 2 | . 2 . . . . . Derelict Logs Recovered 3 | . . 2 . 1 . . Drone Launches . | . . . . . . . Drone Recoveries . | . . . . . . . Exploration | -11 -10 -10 -10 -9 -8 -8 ------------- Run | Yrd Mat Min Exi Min Mat Gar Turns Passed 7016 | 83 270 1373 1382 826 927 2155 Spaces Moved 2593 | 39 159 649 342 331 307 766 Core 11 | 10 . . . . . 1 Treads 1157 | . . . 1 331 253 572 Legs 1425 | 29 159 649 341 . 54 193 Wheels . | . . . . . . . Hover . | . . . . . . . Flight . | . . . . . . . Fastest Speed 50 | 50 120 120 160 160 155 160 Average Speed 207 | 108 120 178 397 160 174 204 Slowest Speed 1100 | 190 120 270 450 160 330 1100 Overloaded Moves . | . . . . . . . Propulsion Burnouts . | . . . . . . . Robots Hopped . | . . . . . . . Cave-ins Triggered . | . . . . . . . Exploration Rate (%) 58 | 4 52 98 70 66 32 86 Regions Visited 6 Branch Regions 3 Pre-discovered Areas 4 | . . 2 1 1 . . Known Exits Taken 2 | . 1 . . . 1 . Unknown Exits Taken 4 | 1 . 1 1 1 . . Scrap Searched 2 | . . 1 . 1 . . Spaces Dug 10 | . . . . . . 10 Terrain Destroyed 64 | . . . . . 30 34 Melee . | . . . . . . . Projectile 31 | . . . . . 27 4 AOE 33 | . . . . . 3 30 Terrain Rammed . | . . . . . . . Walls Destroyed . | . . . . . . . Machines Disabled . | . . . . . . . Actions | -11 -10 -10 -10 -9 -8 -8 --------- Run | Yrd Mat Min Exi Min Mat Gar Total 3748 | 60 212 799 363 611 520 1183 Wait 679 | . 33 80 5 266 66 229 Move 2588 | 38 158 648 341 330 307 766 Hop . | . . . . . . . Pick Up 52 | 4 3 10 2 1 20 12 Fast Attach 37 | 7 . 3 . 1 10 16 Attach 16 | 1 . 1 3 1 7 3 Detach 2 | 1 . . . 1 . . Swap 30 | . 3 5 4 . 4 14 Drop 45 | . 1 10 4 . 9 21 Fire 286 | 9 14 41 . 10 91 121 Melee 5 | . . . 4 . . 1 Ram . | . . . . . . . Kick 1 | . . 1 . . . . Crush 7 | . . . . 1 6 . Escape Stasis . | . . . . . . . Rewire . | . . . . . . . Trap . | . . . . . . . Miscellaneous . | . . . . . . . Route ------- -11/Scrapyard -10/Materials (discovered 3 exits: [*Mat] / *Min x2) -10/Mines (discovered 3 exits: [*Mat x2] / *Exi) -10/Exiles -9/Mines -8/Materials -8/Garrison (discovered 3 exits: [*Mat x3]) History --------- Turn | Location | Event 8 | -11/Scrapyard | Discovered new exit (range 15) 84 | -11/Scrapyard | Entered Materials 155 | -10/Materials | Identified exit to Mines 284 | -10/Materials | Discovered new exit (range 5) 300 | -10/Materials | Build established: Mutant 354 | -10/Materials | Entered Mines 469 | -10/Mines | Discovered new exit (range 11) 504 | -10/Mines | Met a Derelict shopkeep closing up shop 745 | -10/Mines | Discovered new exit (range 14) 751 | -10/Mines | Found a damaged Exp. Sensor Array with a note attached 757 | -10/Mines | Learned location of Storage (-9) 804 | -10/Mines | Found Prototype Device 860 | -10/Mines | Joined a pair of Derelicts in attacking an 0b10 outpost 1055 | -10/Mines | Learned location of Recycling (-9) 1131 | -10/Mines | Build established: Scavenger-Mutant 1137 | -10/Mines | Found a hidden stash of uninstalled traps 1522 | -10/Mines | Core integrity fell below 50% 1652 | -10/Mines | Escorted by a lone wolf Derelict 1712 | -10/Mines | Deemed a non-threat by the Exiles lab entrance 1712 | -10/Mines | Discovered new exit (range 5) 1727 | -10/Mines | Entered Exiles 1727 | -10/Exiles | Accompanied by 1 ally 1800 | -10/Exiles | Met 8R-AWN 1827 | -10/Exiles | Build established: Mutant 1838 | -10/Exiles | Met EX-HEX 2067 | -10/Exiles | Met EX-DEC 2190 | -10/Exiles | Learned location of Zion (-7) 2262 | -10/Exiles | Met EX-BIN 2516 | -10/Exiles | Aligned with FarCom system 2520 | -10/Exiles | Given EX-Vault access code 2624 | -10/Exiles | Opened EX-Vault 2646 | -10/Exiles | Found Longsword +1 2773 | -10/Exiles | Warned to stay clear of 0b10 Research branches 3061 | -10/Exiles | Discovered new exit (range 10) 3109 | -10/Exiles | Left Exiles lab with Longsword +1 3109 | -10/Exiles | Entered Mines 3172 | -9/Mines | A weapon hastily lodged in a ceiling crevice suddenly fell to the ground 3908 | -9/Mines | Discovered new exit (range 8) 3935 | -9/Mines | Entered Materials 3935 | -8/Materials | Evolved 4 slots: Propulsion x2, Utility x2 4234 | -8/Materials | Build established: Scavenger-Mutant 4548 | -8/Materials | Garrison activated, responded to threat 4614 | -8/Materials | Lost 10 parts (2p4n3u1w) 4623 | -8/Materials | Destroyed 12 combat bots 4799 | -8/Materials | Build established: Mutant 4862 | -8/Materials | Identified exit to Garrison 4862 | -8/Materials | Entered Garrison 4868 | -8/Garrison | Triggered checkpoint 5483 | -8/Garrison | Garrison Relay disabled 5529 | -8/Garrison | Core integrity fell below 50% 5588 | -8/Garrison | Lost 3 parts (1p2n) 5677 | -8/Garrison | Triggered checkpoint 5824 | -8/Garrison | Triggered checkpoint 5944 | -8/Garrison | Discovered new exit (range 12) 5957 | -8/Garrison | Rescued a captive Derelict 5957 | -8/Garrison | Rescued a captive Derelict 5997 | -8/Garrison | Triggered checkpoint 6011 | -8/Garrison | Build established: Scavenger-Mutant 6024 | -8/Garrison | Garrison Relay disabled 6120 | -8/Garrison | Triggered checkpoint 6191 | -8/Garrison | Discovered new exit (range 8) 6222 | -8/Garrison | Triggered checkpoint 6237 | -8/Garrison | Garrison Relay disabled 6429 | -8/Garrison | Triggered checkpoint 6552 | -8/Garrison | Garrison Relay disabled 6575 | -8/Garrison | Triggered checkpoint 6715 | -8/Garrison | Discovered new exit (range 3) 6981 | -8/Garrison | Spotted B-75 Beast 6993 | -8/Garrison | Core integrity fell below 20% 7013 | -8/Garrison | Destroyed B-75 Beast 7018 | -8/Garrison | Core destroyed Last Messages --------------- 06989_ Slug penetrates B-75 Beast. 06992_ Reactive Plating destroyed. 06995_ Slug penetrates B-75 Beast. 06995_ B-75 Beast Imp. Medium Treads blasted off. 07001_ B-75 Beast suffers critical hit (Blast). 07001_ Destroyed Dynamic Insulation System. 07001_ Slug penetrates B-75 Beast. 07008_ Lgt. Treads destroyed. 07010_ B-75 Beast Imp. Cooling System blasted off. 07011_ Lgt. Treads destroyed. 07011_ Lgt. Armor Plating destroyed. 07013_ Lgt. Treads broken. 07013_ Overheating: Short circuit. 07013_ B-75 Beast destroyed. 07014_ Power failure, Neutrino Core shutdown. 07017_ Overheating: System interference. 07017_ Gauss Cannon temporarily disabled. 07018_ Overheating: Core damaged (-93). Map ----- +----------------------------------------------------+ | ?????????# < " #?????????????????????? | | ?????????# ##########=#?????????????????????? | | ?????????# #???????##"##??#######???????????? | | ?????????# #???????#| !#??#"" !"#???????????? | | ?????????# #??###### !##### !!###??????????? | | ?????????# #??# = ! == ^! ! #??????????? | | ?????????# #??# |= !!* ^^ #??????????? | | ?????????# #??# ##############+"#??????????? | | ?????????# #??# #????????????# #??????????? | | ?????##### #### ##############+"#??????????? | | ?????# " #??????????? | | ?????# ## #??????????? | | ?????##### #??????????? | | ?????????####################### #??????????? | | ???????????????????????????????# #??????????? | | ???????????????????????????????# #??????????? | | ?????????????????############??# #??????????? | | ?????????????????#""""""""""#??# #??????????? | | ?????????????????#"""!! ! ]"#### #??????????? | | ?????????????????#"" == ] ## #??????????? | | ?????????????????#"[ ++++ ## #??????????? | | ?????????????????#"] +%%+ ## ############ | | ?????????????????#"! +=%! ; + # | | ?????????????????#"! ;%++ + " # | | ?????????????????#"" =!]*[ ## ### ##### # | | ?????????????????#"""=@ ^!]"#### #?# #??????? | | ?????????????????#""%"""%"""#??# #?# #??????? | | ?????????????????############??# #?# #??????? | | ???????????????????????????????# #?# #??????? | | ???????????????????????????????# w #?# #??????? | | ???????????????????????????????# ###"#####++# | | ???????????????????????????????# | | ???????????????????????????????# | | ???????????????????????????????# | | ???????????????????????????????#######"####^^ # | | ?????????????????????????????????????# ####^^^# | | ?????????????????????????????????????# "= | | ?????????????????????????????????????####%! | | ????????????????????????????????????????#= | | ????????????????????????????????????????# | | ????????????????????????????????????????###! # | | ?????????????????????????????????########## # | | ???????????????????????########??# " | | ???????????????????????#!!!! !#??# + [ | | ???????????????????????# ]![ !#??# ####### * | | ???????????????????????#####[##??# #?????# # | | ????????????????############*##### #?????# # | | ????????????????#" #?????# # | | ????????????????#"T"#### ######### ##????+ # | | ????????????????#####??# #??# ##???# # | +----------------------------------------------------+ Best States ------------- Heat Dissipation 45 Energy Generation 19 Energy Capacity 315 Matter Stores 300 Matter Capacity 300 Sight Range 16 Terrain Scan Density 10 Armor Coverage 450 Resistance: KI 20 Evasion (%) 55 Recoil Reduction 4 Item Schematics ----------------- Med. Storage Unit | -9/Mines | Hacked Lrg. Storage Unit | -9/Mines | Hacked Robot Schematics ------------------ None Fabricated ------------ Nothing Alien Tech Used ----------------- None Achievements -------------- None Challenges ------------ None Game ------ Seed PointyWeaponReconstructor Manual? 0 Play Time 00:36:06 Cumulative 148.9 hours Start 2025.03.21 @ 19:02:21 End 2025.03.21 @ 19:37:05 Sessions 1 Manual Loads 0 Difficulty Rogue Special Mode None Game No. 107 Rogue 107 Adventurer 0 Explorer 0 Win Type - Total 7 Types 5/0/1/1/0/0/0/0/0 Lore% 70 Gallery% 66 Achievement% 62 Wizard Run 0 Options --------- Layout 1 ASCII 0 Keyboard 0 Movement Mouse Keybinds 0 Fullscreen 2 Font 32/SmallcapsGlow Map View 50x35 Zoom Use 0% Tactical HUD 1 Map Filters NONE Filters NONE Steam 1 RUN: e943ece1-f3bd-4c64-a5ac-c6f09cc845ed